fUSD/lending_fUSD_20260506
["ID","MTS","AMOUNT","RATE_DAILY","PERIOD"]
[421658672,1778034640000,-150.0,0.00018896,2]
[421658676,1778034640000,-1094.38604953,0.00018914,5]
[421658853,1778034641000,-150.0,0.00019647,4]
[421658855,1778034641000,-162.55277151,0.00019648,2]
[421658839,1778034641000,-150.0,0.00019566,4]
[421658837,1778034641000,-154.09,0.00019565,2]
[421658835,1778034641000,-150.0,0.00019559,4]
[421658829,1778034641000,-150.0,0.00019539,4]
[421658831,1778034641000,-150.0,0.00019553,4]
[421658821,1778034641000,-1450.0,0.00019532,2]
[421658827,1778034641000,-1353.0,0.00019532,2]
[421658859,1778034641000,-160.0,0.00019648,2]
[421658823,1778034641000,-1450.0,0.00019532,2]
[421658833,1778034641000,-166.56,0.00019555,2]
[421658825,1778034641000,-1450.0,0.00019532,2]
[421658849,1778034641000,-150.0,0.00019607,2]
[421658841,1778034641000,-150.0,0.00019572,4]
[421658861,1778034641000,-150.0,0.00019652,4]
[421658857,1778034641000,-207.86895535,0.00019648,2]
[421658845,1778034641000,-150.0,0.00019606,4]
[421658863,1778034641000,-150.0,0.00019656,4]
[421658851,1778034641000,-210.0,0.00019607,2]
[421658847,1778034641000,-278.0,0.00019607,2]
[421658865,1778034641000,-150.0,0.00019687,4]
[421658867,1778034641000,-150.0,0.00019692,4]
[421658878,1778034641000,-500.0,0.00019726,2]
[421658880,1778034641000,-500.0,0.00019726,2]
[421658819,1778034641000,-1450.0,0.00019532,2]
[421658872,1778034641000,-150.0,0.0001971,4]
[421658843,1778034641000,-500.0,0.00019598,2]
[421658815,1778034641000,-1450.0,0.00019532,2]
[421658785,1778034641000,-150.0,0.00019444,4]
[421658794,1778034641000,-150.0,0.00019466,2]
[421658870,1778034641000,-3800.0,0.000197,7]
[421658757,1778034641000,-150.0,0.00019348,4]
[421658759,1778034641000,-150.0,0.00019361,2]
[421658775,1778034641000,-194.72792766,0.00019377,2]
[421658774,1778034641000,-200.0,0.00019377,2]
[421658772,1778034641000,-150.0,0.00019363,4]
[421658777,1778034641000,-2319.72410669,0.00019377,2]
[421658779,1778034641000,-150.0,0.00019403,4]
[421658761,1778034641000,-150.0,0.00019361,2]
[421658763,1778034641000,-150.0,0.00019361,2]
[421658765,1778034641000,-150.0,0.00019361,2]
[421658768,1778034641000,-150.0,0.00019361,2]
[421658770,1778034641000,-244.0,0.00019361,2]
[421658781,1778034641000,-150.0,0.00019413,4]
[421658783,1778034641000,-150.0,0.00019422,4]
[421658787,1778034641000,-2500.0,0.0001946,2]
[421658802,1778034641000,-150.0,0.00019493,4]
[421658789,1778034641000,-150.0,0.00019466,2]
[421658791,1778034641000,-150.0,0.00019466,2]
[421658804,1778034641000,-150.0,0.00019525,4]
[421658806,1778034641000,-150.0,0.00019529,4]
[421658813,1778034641000,-1450.0,0.00019532,2]
[421658811,1778034641000,-1450.0,0.00019532,2]
[421658800,1778034641000,-150.0,0.00019493,4]
[421658795,1778034641000,-286.0,0.00019466,2]
[421658798,1778034641000,-150.0,0.00019484,4]
[421658808,1778034641000,-1450.0,0.00019532,2]
[421658817,1778034641000,-1450.0,0.00019532,2]
[421658886,1778034641000,-500.0,0.00019726,2]
[421658876,1778034641000,-500.0,0.00019726,2]
[421658874,1778034641000,-500.0,0.00019726,2]
[421658947,1778034641000,-5000.0,0.00019795,2]
[421658949,1778034641000,-7600.0,0.000198,7]
[421658955,1778034641000,-150.0,0.00019811,4]
[421658959,1778034641000,-150.0,0.0001985,4]
[421658961,1778034641000,-605.08850061,0.0001985,2]
[421658963,1778034641000,-503.2614295,0.00019873,2]
[421658975,1778034641000,-151.37205083,0.0001989,4]
[421658977,1778034641000,-261.97324499,0.0001989,4]
[421658979,1778034641000,-150.0,0.0001989,4]
[421658965,1778034641000,-500.0,0.00019873,2]
[421658966,1778034641000,-500.0,0.00019873,2]
[421658983,1778034641000,-200.99393267,0.0001989,4]
[421658971,1778034641000,-181.37420682,0.0001989,4]
[421658981,1778034641000,-181.98435603,0.0001989,4]
[421658969,1778034641000,-294.96184725,0.0001989,4]
[421658985,1778034641000,-163.6954593,0.0001989,4]
[421658987,1778034641000,-151.0,0.00019892,2]
[421658990,1778034641000,-3000.0,0.00019894,2]
[421658989,1778034641000,-666.0,0.00019894,2]
[421658991,1778034641000,-500.0,0.00019894,2]
[421658992,1778034641000,-500.0,0.00019894,2]
[421658994,1778034641000,-500.0,0.00019894,2]
[421658997,1778034641000,-1366610.3114,0.00019895,2]
[421658993,1778034641000,-500.0,0.00019894,2]
[421658996,1778034641000,-1831.0,0.00019895,5]
[421658884,1778034641000,-493.40619236,0.00019726,2]
[421658995,1778034641000,-500.0,0.00019894,2]
[421658957,1778034641000,-1674.0,0.00019833,2]
[421658951,1778034641000,-162.55277151,0.000198,7]
[421658973,1778034641000,-150.0,0.0001989,4]
[421658945,1778034641000,-150.0,0.00019773,4]
[421658882,1778034641000,-500.0,0.00019726,2]
[421658953,1778034641000,-150.0,0.00019809,4]
[421658888,1778034641000,-500.0,0.00019726,2]
[421658890,1778034641000,-349.32688901,0.00019726,2]
[421658903,1778034641000,-500.0,0.00019726,2]
[421658906,1778034641000,-500.0,0.00019726,2]
[421658910,1778034641000,-500.0,0.00019726,2]
[421658899,1778034641000,-500.0,0.00019726,2]
[421658897,1778034641000,-500.0,0.00019726,2]
[421658901,1778034641000,-500.0,0.00019726,2]
[421658895,1778034641000,-500.0,0.00019726,2]
[421658912,1778034641000,-500.0,0.00019726,2]
[421658914,1778034641000,-500.0,0.00019726,2]
[421658923,1778034641000,-500.0,0.00019726,2]
[421658908,1778034641000,-354.97379189,0.00019726,2]
[421658916,1778034641000,-236.07179252,0.00019726,2]
[421658943,1778034641000,-150.0,0.00019769,4]
[421658925,1778034641000,-565.02359743,0.00019726,2]
[421658939,1778034641000,-150.0,0.00019731,4]
[421658937,1778034641000,-150.0,0.00019728,4]
[421658935,1778034641000,-202.01875797,0.00019726,2]
[421658921,1778034641000,-500.0,0.00019726,2]
[421658941,1778034641000,-3678.0062,0.00019735,2]
[421658927,1778034641000,-500.0,0.00019726,2]
[421658931,1778034641000,-150.0,0.00019726,2]
[421658933,1778034641000,-150.0,0.00019726,2]
[421658918,1778034641000,-500.0,0.00019726,2]
[421658929,1778034641000,-506.33798591,0.00019726,2]
[421659071,1778034642000,-500.0,0.00020472,2]
[421659069,1778034642000,-151.73898599,0.00020472,2]
[421659067,1778034642000,-599.60298507,0.00020472,2]
[421659056,1778034642000,-7542.19124387,0.00020115,2]
[421659054,1778034642000,-2552.208,0.00020074,2]
[421659051,1778034642000,-450.880198,0.00020048,7]
[421659053,1778034642000,-184.828651,0.00020048,7]
[421659049,1778034642000,-1000.0,0.0002,7]
[421659060,1778034642000,-2191.8,0.00020381,2]
[421659063,1778034642000,-349.24374519,0.00020421,2]
[421659073,1778034642000,-209.40437684,0.00020473,2]
[421659065,1778034642000,-1000.0,0.00020421,2]
[421659077,1778034642000,-500.0,0.00020577,2]
[421659093,1778034642000,-183.0,0.00021,2]
[421659079,1778034642000,-156.76034089,0.00020593,2]
[421659081,1778034642000,-150.0,0.0002064,4]
[421659085,1778034642000,-266.72,0.00020924,2]
[421659095,1778034642000,-293.0,0.00021,2]
[421659083,1778034642000,-507.63,0.00020662,2]
[421659097,1778034642000,-793.0,0.00021,2]
[421659089,1778034642000,-1500.0,0.00020968,2]
[421659099,1778034642000,-385.0,0.00021,2]
[421659087,1778034642000,-17099.24,0.00020937,2]
[421659091,1778034642000,-237.0,0.00021,2]
[421659100,1778034642000,-536.0,0.00021,2]
[421659058,1778034642000,-160.463918,0.00020172,2]
[421659075,1778034642000,-2494.55939289,0.00020473,2]
[421659047,1778034642000,-202.0,0.0002,2]
[421659001,1778034642000,-2405.55389864,0.00019925,2]
[421659037,1778034642000,-400.0,0.0002,2]
[421659105,1778034642000,-202.0,0.00021,2]
[421659000,1778034642000,-201.93286099,0.00019925,2]
[421658999,1778034642000,-150.0,0.000199,2]
[421659002,1778034642000,-500.0,0.00019949,2]
[421659004,1778034642000,-202594.35939952,0.0001995,15]
[421659003,1778034642000,-42657.689,0.0001995,2]
[421659005,1778034642000,-473.06,0.00019964,2]
[421659006,1778034642000,-2000.0,0.00019969,2]
[421659007,1778034642000,-515.159923,0.00019986,7]
[421659008,1778034642000,-950.0,0.00019995,2]
[421659016,1778034642000,-950.0,0.00019995,2]
[421659014,1778034642000,-950.0,0.00019995,2]
[421659010,1778034642000,-950.0,0.00019995,2]
[421659020,1778034642000,-950.0,0.00019995,2]
[421659012,1778034642000,-950.0,0.00019995,2]
[421659018,1778034642000,-950.0,0.00019995,2]
[421659022,1778034642000,-950.0,0.00019995,2]
[421659027,1778034642000,-237.0,0.0002,2]
[421659033,1778034642000,-793.0,0.0002,2]
[421659029,1778034642000,-183.0,0.0002,2]
[421659041,1778034642000,-536.0,0.0002,2]
[421659043,1778034642000,-7171.0,0.0002,2]
[421659035,1778034642000,-385.0,0.0002,2]
[421659024,1778034642000,-950.0,0.00019995,2]
[421659025,1778034642000,-821.0,0.00019995,2]
[421659039,1778034642000,-8052.0,0.0002,2]
[421659031,1778034642000,-293.0,0.0002,2]
[421659045,1778034642000,-198.0,0.0002,2]
[421659103,1778034642000,-198.0,0.00021,2]
[421658998,1778034642000,-11400.0,0.000199,7]
[421659113,1778034642000,-9909.74782394,0.00021085,2]
[421659185,1778034642000,-400.0,0.00021486,2]
[421659192,1778034642000,-1056.37158108,0.0002156,5]
[421659196,1778034642000,-1003.50073049,0.0002156,5]
[421659194,1778034642000,-1013.0818107,0.0002156,5]
[421659199,1778034642000,-1036.54351974,0.0002156,5]
[421659202,1778034642000,-1091.16273556,0.0002156,5]
[421659206,1778034642000,-1134.02340127,0.0002156,5]
[421659204,1778034642000,-1027.15048185,0.0002156,5]
[421659209,1778034642000,-1046.37488784,0.0002156,5]
[421659211,1778034642000,-1098.63270319,0.0002156,5]
[421659213,1778034642000,-1210.16589705,0.0002156,5]
[421659219,1778034642000,-250.0,0.000216,2]
[421659226,1778034642000,-250.0,0.000216,2]
[421659225,1778034642000,-250.0,0.000216,2]
[421659215,1778034642000,-168.99085688,0.00021569,2]
[421659208,1778034642000,-1074.99795492,0.0002156,5]
[421659228,1778034642000,-250.0,0.000216,2]
[421659217,1778034642000,-2682.57183977,0.00021569,2]
[421659223,1778034642000,-250.0,0.000216,2]
[421659221,1778034642000,-250.0,0.000216,2]
[421659230,1778034642000,-250.0,0.000216,2]
[421659232,1778034642000,-250.0,0.000216,2]
[421659243,1778034642000,-504.36314332,0.00021738,2]
[421659234,1778034642000,-342.0,0.000216,2]
[421659236,1778034642000,-1500.0,0.00021673,2]
[421659239,1778034642000,-150.0,0.00021726,4]
[421659241,1778034642000,-500.0,0.00021738,2]
[421659188,1778034642000,-2000.0,0.00021516,2]
[421659190,1778034642000,-1046.82862434,0.0002156,5]
[421659108,1778034642000,-217.15233878,0.00021021,2]
[421659183,1778034642000,-400.0,0.00021486,2]
[421659116,1778034642000,-1000.0,0.00021125,2]
[421659117,1778034642000,-2000.0,0.00021127,2]
[421659119,1778034642000,-492.83,0.00021273,2]
[421659111,1778034642000,-2586.85809042,0.00021021,2]
[421659126,1778034642000,-562.55,0.00021297,2]
[421659122,1778034642000,-381.87,0.00021273,2]
[421659124,1778034642000,-248.0,0.00021286,2]
[421659187,1778034642000,-400.0,0.00021486,2]
[421659130,1778034642000,-302.67149318,0.00021404,2]
[421659132,1778034642000,-1125.7497615,0.00021414,2]
[421659135,1778034642000,-86317.9626917,0.00021414,2]
[421659153,1778034642000,-904.544289,0.00021414,2]
[421659145,1778034642000,-151.0,0.00021414,2]
[421659128,1778034642000,-184.0,0.00021314,2]
[421659142,1778034642000,-904.544289,0.00021414,2]
[421659149,1778034642000,-904.544289,0.00021414,2]
[421659179,1778034642000,-400.0,0.00021486,2]
[421659177,1778034642000,-400.0,0.00021486,2]
[421659175,1778034642000,-400.0,0.00021486,2]
[421659173,1778034642000,-400.0,0.00021486,2]
[421659168,1778034642000,-151.0,0.00021414,2]
[421659181,1778034642000,-400.0,0.00021486,2]
[421659169,1778034642000,-154.422777,0.00021414,2]
[421659171,1778034642000,-400.0,0.00021486,2]
[421659164,1778034642000,-151.0,0.00021414,2]
[421659157,1778034642000,-151.0,0.00021414,2]
[421659140,1778034642000,-904.544289,0.00021414,2]
[421659161,1778034642000,-151.0,0.00021414,2]
[421659332,1778034643000,-483.227327,0.00021862,2]
[421659328,1778034643000,-483.227327,0.00021862,2]
[421659324,1778034643000,-579.307916,0.00021862,2]
[421659320,1778034643000,-579.307916,0.00021862,2]
[421659326,1778034643000,-599.837577,0.00021862,2]
[421659316,1778034643000,-579.307916,0.00021862,2]
[421659322,1778034643000,-599.837577,0.00021862,2]
[421659314,1778034643000,-599.837577,0.00021862,2]
[421659312,1778034643000,-579.307916,0.00021862,2]
[421659309,1778034643000,-158.358264,0.00021862,2]
[421659318,1778034643000,-599.837577,0.00021862,2]
[421659334,1778034643000,-483.227327,0.00021862,2]
[421659372,1778034643000,-450.0,0.00022,2]
[421659348,1778034643000,-151.0,0.00021862,2]
[421659338,1778034643000,-904.544289,0.00021862,2]
[421659342,1778034643000,-904.544289,0.00021862,2]
[421659340,1778034643000,-152.207717,0.00021862,2]
[421659346,1778034643000,-151.0,0.00021862,2]
[421659330,1778034643000,-483.227327,0.00021862,2]
[421659344,1778034643000,-904.544289,0.00021862,2]
[421659350,1778034643000,-151.0,0.00021862,2]
[421659352,1778034643000,-151.0,0.00021862,2]
[421659354,1778034643000,-502.13953093,0.00021873,2]
[421659360,1778034643000,-237.0,0.00022,2]
[421659368,1778034643000,-385.0,0.00022,2]
[421659305,1778034643000,-158.358264,0.00021862,2]
[421659336,1778034643000,-904.544289,0.00021862,2]
[421659307,1778034643000,-158.358264,0.00021862,2]
[421659279,1778034643000,-1291.071661,0.00021862,2]
[421659287,1778034643000,-151.0,0.00021862,2]
[421659362,1778034643000,-183.0,0.00022,2]
[421659245,1778034643000,-500.0,0.00021738,2]
[421659247,1778034643000,-500.0,0.00021738,2]
[421659251,1778034643000,-1170.0,0.00021739,2]
[421659249,1778034643000,-1268.0,0.00021739,2]
[421659257,1778034643000,-437.45,0.00021744,2]
[421659253,1778034643000,-6043.0,0.00021739,2]
[421659255,1778034643000,-3536.0,0.00021739,2]
[421659270,1778034643000,-4600.3326407,0.00021862,2]
[421659258,1778034643000,-300.0,0.00021861,2]
[421659274,1778034643000,-6088.3358152,0.00021862,2]
[421659272,1778034643000,-453846.1142058,0.00021862,2]
[421659268,1778034643000,-2758.8249975,0.00021862,2]
[421659266,1778034643000,-2412.6730549,0.00021862,2]
[421659275,1778034643000,-3138.9817486,0.00021862,2]
[421659264,1778034643000,-500.0,0.00021861,2]
[421659260,1778034643000,-666.0,0.00021861,2]
[421659277,1778034643000,-1291.071661,0.00021862,2]
[421659262,1778034643000,-500.0,0.00021861,2]
[421659281,1778034643000,-1291.071661,0.00021862,2]
[421659283,1778034643000,-1291.071661,0.00021862,2]
[421659285,1778034643000,-151.0,0.00021862,2]
[421659295,1778034643000,-151.0,0.00021862,2]
[421659298,1778034643000,-151.0,0.00021862,2]
[421659303,1778034643000,-158.358264,0.00021862,2]
[421659300,1778034643000,-151.0,0.00021862,2]
[421659302,1778034643000,-241.35083,0.00021862,2]
[421659294,1778034643000,-151.0,0.00021862,2]
[421659356,1778034643000,-15200.0,0.000219,7]
[421659366,1778034643000,-793.0,0.00022,2]
[421659483,1778034643000,-3868.58269389,0.00022734,2]
[421659434,1778034643000,-152.0,0.00022545,2]
[421659436,1778034643000,-152.0,0.00022545,2]
[421659444,1778034643000,-152.0,0.00022545,2]
[421659446,1778034643000,-152.0,0.00022545,2]
[421659442,1778034643000,-152.0,0.00022545,2]
[421659438,1778034643000,-152.0,0.00022545,2]
[421659448,1778034643000,-152.0,0.00022545,2]
[421659440,1778034643000,-152.0,0.00022545,2]
[421659453,1778034643000,-152.0,0.00022545,2]
[421659451,1778034643000,-152.0,0.00022545,2]
[421659455,1778034643000,-152.0,0.00022545,2]
[421659469,1778034643000,-350.0,0.00022661,2]
[421659459,1778034643000,-152.0,0.00022545,2]
[421659473,1778034643000,-184.828651,0.00022662,14]
[421659471,1778034643000,-450.880198,0.00022662,14]
[421659465,1778034643000,-515.159923,0.00022592,14]
[421659475,1778034643000,-2884.75459676,0.00022665,2]
[421659479,1778034643000,-882.0,0.000227,2]
[421659461,1778034643000,-152.0,0.00022545,2]
[421659477,1778034643000,-7542.19124387,0.00022692,2]
[421659463,1778034643000,-285.0,0.00022545,2]
[421659467,1778034643000,-359.48712633,0.00022612,2]
[421659481,1778034643000,-307.0,0.000227,2]
[421659487,1778034643000,-314.0,0.000228,2]
[421659484,1778034643000,-1000.0,0.000228,2]
[421659488,1778034643000,-160.463918,0.00022803,14]
[421659358,1778034643000,-5000.0,0.00021918,2]
[421659432,1778034643000,-152.0,0.00022545,2]
[421659430,1778034643000,-152.0,0.00022545,2]
[421659457,1778034643000,-152.0,0.00022545,2]
[421659416,1778034643000,-151.0,0.00022545,2]
[421659428,1778034643000,-152.0,0.00022545,2]
[421659370,1778034643000,-200.0,0.00022,10]
[421659364,1778034643000,-293.0,0.00022,2]
[421659375,1778034643000,-198.0,0.00022,2]
[421659377,1778034643000,-202.0,0.00022,2]
[421659391,1778034643000,-2191.8,0.00022353,2]
[421659381,1778034643000,-300.0,0.000221,10]
[421659379,1778034643000,-2500.0,0.00022064,2]
[421659395,1778034643000,-192.12880102,0.00022407,2]
[421659386,1778034643000,-1851.4121579,0.00022221,2]
[421659384,1778034643000,-2781.82699784,0.00022117,2]
[421659393,1778034643000,-350.0,0.00022393,2]
[421659399,1778034643000,-2900.0,0.000225,15]
[421659389,1778034643000,-509.29335306,0.00022253,2]
[421659373,1778034643000,-536.0,0.00022,2]
[421659397,1778034643000,-192.128801,0.00022407,2]
[421659388,1778034643000,-350.0,0.00022228,2]
[421659412,1778034643000,-151.0,0.00022545,2]
[421659414,1778034643000,-151.0,0.00022545,2]
[421659422,1778034643000,-1535.0,0.00022545,2]
[421659420,1778034643000,-1535.0,0.00022545,2]
[421659410,1778034643000,-151.0,0.00022545,2]
[421659426,1778034643000,-956.46945648,0.00022545,2]
[421659407,1778034643000,-1445.51595559,0.00022545,2]
[421659418,1778034643000,-151.0,0.00022545,2]
[421659405,1778034643000,-1535.0,0.00022545,2]
[421659403,1778034643000,-5053.42959064,0.0002252,2]
[421659401,1778034643000,-350.0,0.00022504,2]
[421659424,1778034643000,-1535.0,0.00022545,2]
[421659574,1778034644000,-150.0,0.000239,2]
[421659567,1778034644000,-163.0,0.0002388,2]
[421659575,1778034644000,-150.0,0.000239,2]
[421659557,1778034644000,-2012.0,0.000237,2]
[421659566,1778034644000,-1768.78856391,0.00023872,2]
[421659561,1778034644000,-350.0,0.00023843,2]
[421659563,1778034644000,-227.29539059,0.00023872,4]
[421659555,1778034644000,-163.08,0.00023661,2]
[421659553,1778034644000,-151.0,0.000235,2]
[421659549,1778034644000,-156.76034089,0.00023341,2]
[421659568,1778034644000,-161.0,0.0002388,2]
[421659565,1778034644000,-7075.42328503,0.00023872,2]
[421659572,1778034644000,-150.0,0.000239,2]
[421659583,1778034644000,-920.42,0.00023972,2]
[421659582,1778034644000,-2014.8776157,0.00023932,2]
[421659571,1778034644000,-673.90630449,0.00023899,2]
[421659569,1778034644000,-300.0,0.00023899,2]
[421659579,1778034644000,-2000.0,0.000239,2]
[421659580,1778034644000,-27810.3742,0.000239,2]
[421659587,1778034644000,-200.0,0.00023986,2]
[421659585,1778034644000,-500.0,0.00023983,2]
[421659588,1778034644000,-3600.0,0.00024,2]
[421659590,1778034644000,-151.0,0.00024,2]
[421659591,1778034644000,-160.0,0.00024,22]
[421659593,1778034644000,-237.0,0.00024,2]
[421659594,1778034644000,-183.0,0.00024,2]
[421659559,1778034644000,-150.0,0.00023734,2]
[421659577,1778034644000,-150.0,0.000239,2]
[421659551,1778034644000,-1664.53,0.00023479,2]
[421659599,1778034644000,-385.0,0.00024,2]
[421659545,1778034644000,-350.0,0.00023246,2]
[421659490,1778034644000,-2000.0,0.0002297,2]
[421659495,1778034644000,-2000.0,0.0002297,2]
[421659499,1778034644000,-183.0,0.00023,2]
[421659503,1778034644000,-793.0,0.00023,2]
[421659509,1778034644000,-198.0,0.00023,2]
[421659497,1778034644000,-237.0,0.00023,2]
[421659501,1778034644000,-293.0,0.00023,2]
[421659493,1778034644000,-2000.0,0.0002297,2]
[421659506,1778034644000,-536.0,0.00023,2]
[421659504,1778034644000,-385.0,0.00023,2]
[421659510,1778034644000,-202.0,0.00023,2]
[421659512,1778034644000,-161.0,0.0002308,2]
[421659514,1778034644000,-184.27984259,0.00023125,10]
[421659523,1778034644000,-211.01027924,0.00023198,2]
[421659527,1778034644000,-2000.0,0.00023198,2]
[421659529,1778034644000,-2000.0,0.00023198,2]
[421659516,1778034644000,-182.71210984,0.00023125,10]
[421659518,1778034644000,-1343.53774353,0.00023125,10]
[421659525,1778034644000,-169.27678024,0.00023198,2]
[421659520,1778034644000,-830.69177863,0.00023125,10]
[421659531,1778034644000,-2000.0,0.00023198,2]
[421659533,1778034644000,-310.0,0.00023205,4]
[421659535,1778034644000,-621.78829552,0.00023211,2]
[421659539,1778034644000,-2991.49051684,0.00023213,2]
[421659538,1778034644000,-500.0,0.00023211,2]
[421659541,1778034644000,-9909.74782394,0.00023218,2]
[421659543,1778034644000,-507.63,0.00023244,2]
[421659547,1778034644000,-350.0,0.00023271,2]
[421659601,1778034644000,-1501.20894101,0.00024,2]
[421659706,1778034644000,-209.91845794,0.00025,2]
[421659602,1778034644000,-1501.20894101,0.00024,2]
[421659651,1778034644000,-500.0,0.00024657,2]
[421659662,1778034644000,-232.4,0.00024658,2]
[421659674,1778034644000,-1268.0,0.00024739,2]
[421659672,1778034644000,-150.0,0.00024734,2]
[421659664,1778034644000,-1000.0,0.00024658,2]
[421659669,1778034644000,-267.02889892,0.00024673,2]
[421659667,1778034644000,-565.18715455,0.00024673,2]
[421659676,1778034644000,-1170.0,0.00024739,2]
[421659666,1778034644000,-156.74,0.00024658,2]
[421659678,1778034644000,-6043.0,0.00024739,2]
[421659671,1778034644000,-522.50412658,0.00024674,2]
[421659681,1778034644000,-348.12199216,0.00024746,2]
[421659683,1778034644000,-350.0,0.00024809,2]
[421659685,1778034644000,-200.0,0.00024837,2]
[421659686,1778034644000,-754.0,0.00024957,10]
[421659693,1778034644000,-160.0,0.00025,25]
[421659695,1778034644000,-240.0,0.00025,2]
[421659690,1778034644000,-540.0,0.00025,2]
[421659692,1778034644000,-908.9264164,0.00025,2]
[421659688,1778034644000,-2000.0,0.00025,2]
[421659699,1778034644000,-308.67038519,0.00025,2]
[421659697,1778034644000,-198.0,0.00025,2]
[421659702,1778034644000,-385.6557652,0.00025,2]
[421659700,1778034644000,-809.0,0.00025,2]
[421659704,1778034644000,-538.5843824,0.00025,2]
[421659705,1778034644000,-204.37258832,0.00025,2]
[421659597,1778034644000,-793.0,0.00024,2]
[421659657,1778034644000,-500.0,0.00024657,2]
[421659646,1778034644000,-211.56,0.0002461,2]
[421659679,1778034644000,-3536.0,0.00024739,2]
[421659660,1778034644000,-150.0,0.00024658,2]
[421659648,1778034644000,-500.0,0.00024657,2]
[421659605,1778034644000,-1535.85559752,0.00024,2]
[421659607,1778034644000,-536.0,0.00024,2]
[421659604,1778034644000,-1535.85559752,0.00024,2]
[421659609,1778034644000,-198.0,0.00024,2]
[421659612,1778034644000,-1541.4442837,0.00024,2]
[421659610,1778034644000,-1541.4442837,0.00024,2]
[421659619,1778034644000,-1758.69,0.00024174,2]
[421659614,1778034644000,-202.0,0.00024,2]
[421659615,1778034644000,-675.73,0.0002401,2]
[421659617,1778034644000,-2372.44,0.00024174,2]
[421659623,1778034644000,-2011.0,0.000242,2]
[421659621,1778034644000,-15787.24,0.00024174,2]
[421659631,1778034644000,-300.0,0.00024399,2]
[421659596,1778034644000,-293.0,0.00024,2]
[421659624,1778034644000,-222.131232,0.00024234,2]
[421659637,1778034644000,-2000.0,0.00024402,2]
[421659649,1778034644000,-425.18750743,0.00024657,2]
[421659659,1778034644000,-349.95264909,0.00024657,2]
[421659655,1778034644000,-500.0,0.00024657,2]
[421659644,1778034644000,-24769.0,0.000246,2]
[421659642,1778034644000,-324.26,0.00024515,2]
[421659653,1778034644000,-500.0,0.00024657,2]
[421659630,1778034644000,-2191.8,0.00024324,2]
[421659626,1778034644000,-1115.86692758,0.00024234,10]
[421659640,1778034644000,-151.0,0.000245,2]
[421659639,1778034644000,-1072.4654,0.00024402,2]
[421659628,1778034644000,-744.82,0.000243,7]
[421659759,1778034645000,-5529.0,0.00026,5]
[421659753,1778034645000,-607.51702406,0.0002599,2]
[421659747,1778034645000,-457.26723297,0.0002594,2]
[421659739,1778034645000,-332.0,0.00025617,10]
[421659754,1778034645000,-4572.90499544,0.00026,2]
[421659735,1778034645000,-350.0,0.00025498,2]
[421659751,1778034645000,-500.0,0.0002595,2]
[421659741,1778034645000,-150.0,0.00025734,2]
[421659740,1778034645000,-200.0,0.00025688,2]
[421659738,1778034645000,-830.0,0.00025617,10]
[421659750,1778034645000,-644.79446246,0.0002595,2]
[421659748,1778034645000,-500.0,0.0002594,2]
[421659757,1778034645000,-161.49,0.00026,2]
[421659763,1778034645000,-744.82,0.000262,7]
[421659756,1778034645000,-30000.0,0.00026,2]